fUST/lending_fUST_20250303
["ID","MTS","AMOUNT","RATE_DAILY","PERIOD"]
[355187456,1740970232849,-162.88753966,0.00021997,2]
[355187457,1740970232859,-500.0,0.00021997,2]
[355187458,1740970232870,-181.73373756,0.00021997,2]
[355187459,1740970232880,-19633.85909712,0.00021998,3]
[355187460,1740970232889,-9304.76131688,0.00022,2]
[355187461,1740970232899,-706.41285824,0.00022,2]
[355187462,1740970232909,-158.887575,0.00022,7]
[355187463,1740970232919,-151.0,0.00022,7]
[355187464,1740970232928,-151.0,0.00022,7]
[355187465,1740970232938,-153.688855,0.00022,7]
[355187466,1740970232948,-151.0,0.00022,7]
[355187467,1740970232957,-158.50306,0.00022,7]
[355187468,1740970232967,-163.130928,0.00022,7]
[355187469,1740970232975,-151.0,0.00022,7]
[355187470,1740970232985,-151.0,0.00022,7]
[355187471,1740970232995,-154.418126,0.00022,7]
[355187472,1740970233006,-180.046751,0.00022,7]
[355187473,1740970233016,-155.328247,0.00022,7]
[355187474,1740970233028,-151.0,0.00022,7]
[355187475,1740970233038,-160.173248,0.00022,7]
[355187476,1740970233048,-151.0,0.00022,7]
[355187477,1740970233059,-151.0,0.00022,7]
[355187478,1740970233070,-151.0,0.00022,7]
[355187479,1740970233080,-151.0,0.00022,7]
[355187480,1740970233091,-150.0,0.00022,2]
[355187481,1740970233102,-151.0,0.00022,7]
[355187482,1740970233112,-151.0,0.00022,7]
[355187483,1740970233123,-151.0,0.00022,7]
[355187484,1740970233133,-160.0,0.00023,3]
[355187485,1740970233144,-392.0,0.00023107,2]
[355187486,1740970233154,-337.3048442,0.00023422,2]
[355187487,1740970233164,-157.10089,0.00023693,3]
[355187488,1740970233174,-160.0,0.00023896,2]
[355187489,1740970233186,-151.0,0.00023899,2]
[355187490,1740970233197,-602.3335877,0.000239,2]
[355187491,1740970233207,-151.0,0.000239,7]
[355187492,1740970233218,-151.0,0.000239,7]
[355187493,1740970233228,-151.0,0.000239,7]
[355187494,1740970233239,-151.0,0.00023961,7]
[355187495,1740970233249,-19633.85909712,0.00023961,2]
[355187496,1740970233259,-151.0,0.00023963,7]
[355187497,1740970233282,-151.0,0.00023963,7]
[355187498,1740970233294,-162.795777,0.00023965,7]
[355187499,1740970233305,-166.690717,0.00023965,7]
[355187500,1740970233317,-158.023632,0.00023965,7]
[355187501,1740970233327,-151.0,0.00023965,7]
[355187502,1740970233339,-163.305492,0.00023965,7]
[355187503,1740970233350,-152.682174,0.00023967,7]
[355187504,1740970233360,-151.0,0.00023969,7]
[355187505,1740970233371,-151.0,0.00023969,7]
[355187506,1740970233382,-151.0,0.00023969,7]
[355187507,1740970233392,-151.0,0.00023969,7]
[355187508,1740970233402,-151.0,0.00023969,7]
[355187509,1740970233413,-151.0,0.00023971,7]
[355187510,1740970233424,-151.0,0.00023971,7]
[355187511,1740970233434,-221.361444,0.00023971,7]
[355187512,1740970233445,-154.099933,0.00023975,7]
[355187513,1740970233456,-151.0,0.00023975,7]
[355187514,1740970233468,-198.255181,0.00023977,7]
[355187515,1740970233478,-151.0,0.00023977,7]
[355187516,1740970233489,-151.0,0.00023977,7]
[355187517,1740970233500,-152.791061,0.00023977,7]
[355187518,1740970233511,-151.0,0.00023981,7]
[355187519,1740970233521,-152.012854,0.00023986,7]
[355187520,1740970233532,-45.02175474,0.00023988,7]
[355187642,1740970669193,174.52478482,0.00021,2]
[355187661,1740970762185,150.0,0.00021,2]
[355187662,1740970774533,150.0,0.00021,2]
[355187663,1740970778034,6730.56,0.00021,2]
[355187665,1740970780743,150.0,0.00021,2]
[355187666,1740970795117,150.0,0.00021,2]
[355187668,1740970800200,150.0,0.00021,2]
[355187669,1740970815833,245.75,0.00021,2]
[355187682,1740971316390,369.23764097,0.000189,2]
[355187744,1740971432807,-286.75,0.00021897,2]
[355187746,1740971432824,-2130.86390733,0.00021897,2]
[355187748,1740971432838,-184.73517564,0.00022383,2]
[355187750,1740971432852,-300.0,0.00022483,2]
[355187752,1740971432864,-24900.0,0.00022484,2]
[355187754,1740971432878,-500.0,0.0002283,2]
[355187756,1740971432891,-500.0,0.0002283,2]
[355187758,1740971432905,-500.0,0.0002283,2]
[355187760,1740971432917,-335.0,0.0002283,2]
[355187762,1740971432928,-500.0,0.0002283,2]
[355187765,1740971432941,-500.0,0.0002283,2]
[355187766,1740971432953,-519.06953003,0.00022831,2]
[355187768,1740971432966,-10000.0,0.00022831,2]
[355187770,1740971432978,-500.0,0.0002342,2]
[355187772,1740971432990,-252.9786332,0.00023481,2]
[355187774,1740971433002,-700.0,0.00023666,2]
[355187776,1740971433015,-770.0,0.00023666,2]
[355187778,1740971433028,-847.0,0.00023666,2]
[355187779,1740971433041,-931.7,0.00023666,2]
[355187782,1740971433053,-1024.87,0.00023666,2]
[355187784,1740971433066,-1127.357,0.00023666,2]
[355187786,1740971433079,-1240.0927,0.00023666,2]
[355187788,1740971433092,-1364.10197,0.00023666,2]
[355187789,1740971433105,-1500.512167,0.00023666,2]
[355187790,1740971433118,-1400.0,0.00023666,2]
[355187791,1740971433131,-697.33354699,0.00023679,2]
[355187792,1740971433144,-17026.70521894,0.0002368,2]
[355187793,1740971433160,-151.0,0.00023681,7]
[355187794,1740971433174,-164.809128,0.00023681,7]
[355187795,1740971433186,-155.599141,0.00023681,7]
[355187796,1740971433200,-151.0,0.00023681,7]
[355187797,1740971433212,-151.0,0.00023681,7]
[355187798,1740971433225,-151.0,0.00023681,7]
[355187799,1740971433237,-160.0,0.00023693,2]
[355187800,1740971433250,-963.29577113,0.0002386,2]
[355187801,1740971433262,-2418.91203692,0.000239,3]
[355187802,1740971433280,-458.72829956,0.000239,3]
[355187803,1740971433292,-369.23764097,0.000239,2]
[355187804,1740971433304,-241.39542127,0.0002396,2]
[355187805,1740971433316,-500.0,0.00023973,2]
[355187806,1740971433328,-443.20831901,0.00023999,2]
[355187807,1740971433340,-363.29456955,0.00023999,2]
[355187808,1740971433352,-232.66293,0.00023999,7]
[355187809,1740971433364,-264.52793489,0.00023999,7]
[355187889,1740971628794,275.12,0.00021,10]
[355187916,1740972521862,150.0,0.000189,2]
[355187918,1740972547250,188.0,0.00021,10]
[355187990,1740972632177,-2360.6263806,0.00023053,2]
[355187991,1740972632188,-189.7339749,0.00023519,2]
[355187992,1740972632199,-184.73517564,0.000237,2]
[355187993,1740972632208,-19633.85909712,0.00023876,2]
[355187994,1740972632217,-300.0,0.00023877,2]
[355187995,1740972632227,-500.0,0.00023899,2]
[355187996,1740972632237,-500.0,0.00023899,2]
[355187997,1740972632246,-500.0,0.00023899,2]
[355187998,1740972632256,-500.0,0.00023899,2]
[355187999,1740972632266,-500.0,0.00023899,2]
[355188000,1740972632279,-315.0,0.00023899,2]
[355188001,1740972632289,-10008.0,0.000239,2]
[355188002,1740972632299,-150.0,0.000239,2]
[355188003,1740972632309,-500.0,0.00024,2]
[355188004,1740972632318,-500.0,0.00024,2]
[355188005,1740972632328,-500.0,0.00024,2]
[355188006,1740972632337,-439.92042201,0.00024,2]
[355188007,1740972632347,-500.0,0.00024,2]
[355188008,1740972632357,-500.0,0.00024,2]
[355188009,1740972632367,-890.31606197,0.00024,10]
[355188010,1740972632376,-5117.94838612,0.00024618,2]
[355188011,1740972632387,-151.0,0.00024618,7]
[355188012,1740972632396,-15828.54333743,0.00024618,3]
[355188013,1740972632406,-18264.8492763,0.00024618,3]
[355188106,1740972645958,-310.24582331,0.00024617,2]
[355188107,1740972645968,-254.30619869,0.00024617,2]
[355188108,1740972645977,-151.0,0.00024618,7]
[355188109,1740972645987,-151.693441,0.00024618,7]
[355188110,1740972645997,-383.754537,0.00024618,3]
[355188111,1740972646015,-1769.6949507,0.00024618,3]
[355188137,1740973322555,175.41058715,0.00020729,5]
[355188169,1740973802802,175.41058715,0.00020729,5]
[355188206,1740973832414,-300.0,0.00023609,2]
[355188208,1740973832424,-20912.72538502,0.0002361,2]
[355188250,1740973844617,-0.33269561,0.0002361,2]
[355188337,1740975032522,-335.9248069,0.00021723,2]
[355188338,1740975032534,-159.0,0.00022,2]
[355188339,1740975032546,-800.0,0.00022671,2]
[355188340,1740975032556,-880.0,0.00022671,2]
[355188341,1740975032567,-968.0,0.00022671,2]
[355188342,1740975032578,-1064.8,0.00022671,2]
[355188343,1740975032588,-1171.28,0.00022671,2]
[355188344,1740975032598,-1288.408,0.00022671,2]
[355188345,1740975032608,-1417.2488,0.00022671,2]
[355188346,1740975032618,-1558.97368,0.00022671,2]
[355188347,1740975032627,-1714.871048,0.00022671,2]
[355188348,1740975032637,-1600.0,0.00022671,2]
[355188349,1740975032647,-500.0,0.00022673,2]
[355188350,1740975032657,-507.63299072,0.00022673,2]
[355188351,1740975032667,-503.7161591,0.00022673,2]
[355188352,1740975032678,-300.0,0.00022682,2]
[355188353,1740975032689,-500.0,0.00022683,2]
[355188354,1740975032698,-500.0,0.00022683,2]
[355188355,1740975032708,-635.603638,0.00022683,2]
[355188356,1740975032718,-500.0,0.00022683,2]
[355188357,1740975032728,-538.64352229,0.00022683,2]
[355188358,1740975032738,-465.98785691,0.00022683,2]
[355188359,1740975032748,-170.96039136,0.00022683,2]
[355188360,1740975032758,-217.17207631,0.00022683,2]
[355188361,1740975032768,-178.01433908,0.00022683,2]
[355188362,1740975032778,-7914.27166871,0.00022684,3]
[355188363,1740975032787,-2917.99893808,0.00022684,3]
[355188694,1740975043390,-168.63713276,0.00022584,2]
[355188696,1740975043399,-283.47510024,0.00022684,3]
[355192122,1740976238476,-167.5788212,0.00021716,2]
[355192123,1740976238486,-1219.51857865,0.00021763,2]
[355192124,1740976238495,-2320.90260015,0.00021776,2]
[355192251,1740977431986,-151.7,0.00021234,2]
[355192252,1740977431996,-153.0,0.00021243,2]
[355192253,1740977432006,-24900.0,0.00021244,2]
[355192254,1740977432015,-2811.4847123,0.00021588,2]
[355192255,1740977432025,-168.63713275,0.00021676,2]
[355192256,1740977432035,-206.57503502,0.00021776,2]
[355192257,1740977432045,-202.18223905,0.00021776,2]
[355192258,1740977432054,-315.0,0.00021776,2]
[355192259,1740977432064,-315.0,0.00021776,2]
[355192260,1740977432074,-315.0,0.00021776,2]
[355192261,1740977432083,-315.0,0.00021776,2]
[355192262,1740977432093,-315.0,0.00021776,2]
[355192263,1740977432102,-315.0,0.00021776,2]
[355192264,1740977432113,-315.0,0.00021776,2]
[355192265,1740977432124,-315.0,0.00021776,2]
[355192266,1740977432135,-315.0,0.00021776,2]
[355192267,1740977432144,-315.0,0.00021776,2]
[355192268,1740977432154,-315.0,0.00021776,2]
[355192269,1740977432165,-315.0,0.00021776,2]
[355192270,1740977432174,-315.0,0.00021776,2]
[355192271,1740977432184,-327.76572395,0.00021776,2]
[355192272,1740977432194,-151.7,0.00022662,2]
[355192273,1740977432216,-151.7,0.00022662,2]
[355192274,1740977432227,-151.7,0.00022662,2]
[355192275,1740977432237,-11530.11398958,0.00022672,3]
[355192276,1740977432254,-8099.74566487,0.00022672,3]
[355192277,1740977432264,-151.0,0.00022672,7]
[355192278,1740977432274,-152.012854,0.00022672,7]
[355192279,1740977432284,-151.0,0.00022672,7]
[355192280,1740977432303,-153.565852,0.00022672,7]
[355192281,1740977432314,-151.0,0.00022672,7]
[355192282,1740977432324,-153.189614,0.00022672,7]
[355192283,1740977432335,-151.0,0.00022672,7]
[355192284,1740977432346,-151.0,0.00022672,7]
[355192285,1740977432357,-198.255181,0.00022672,7]
[355192286,1740977432367,-151.0,0.00022672,7]
[355192287,1740977432377,-243.972406,0.00022672,7]
[355192288,1740977432390,-152.791061,0.00022672,7]
[355192289,1740977432400,-151.0,0.00022672,7]
[355192290,1740977432410,-158.169243,0.00022672,7]
[355192291,1740977432420,-500.0,0.00022672,2]
[355192292,1740977432430,-500.0,0.00022672,2]
[355192293,1740977432440,-500.0,0.00022672,2]
[355192294,1740977432451,-500.0,0.00022672,2]
[355192295,1740977432461,-500.0,0.00022672,2]
[355192296,1740977432471,-196.334899,0.00022672,2]
[355192297,1740977432482,-151.0,0.00022672,7]
[355192298,1740977432491,-154.099933,0.00022672,7]
[355192299,1740977432501,-151.0,0.00022672,7]
[355192300,1740977432511,-155.880302,0.00022672,7]
[355192301,1740977432520,-181.187752,0.00022672,7]
[355192302,1740977432530,-151.0,0.00022672,7]
[355192303,1740977432540,-151.0,0.00022672,7]
[355192304,1740977432551,-151.0,0.00022672,7]
[355192305,1740977432560,-151.0,0.00022672,7]
[355192306,1740977432570,-151.0,0.00022672,7]
[355192307,1740977432580,-151.0,0.00022672,7]
[355192308,1740977432590,-151.0,0.00022672,7]
[355192309,1740977432599,-151.0,0.00022672,7]
[355192310,1740977432609,-151.0,0.00022672,7]
[355192311,1740977432619,-151.0,0.00022672,7]
[355192312,1740977432628,-274.502002,0.00022672,7]
[355192313,1740977432640,-151.0,0.00022672,7]
[355192314,1740977432650,-151.0,0.00022672,7]
[355192315,1740977432660,-151.0,0.00022672,7]
[355192316,1740977432670,-151.0,0.00022672,7]
[355192317,1740977432679,-151.0,0.00022672,7]
[355192318,1740977432689,-151.0,0.00022672,7]
[355192319,1740977432699,-158.408712,0.00022672,7]
[355192320,1740977432708,-152.682174,0.00022672,7]
[355192321,1740977432718,-151.0,0.00022672,7]
[355192322,1740977432728,-151.0,0.00022672,7]
[355192323,1740977432744,-151.0,0.00022672,7]
[355192324,1740977432753,-151.0,0.00022672,7]
[355192325,1740977432763,-151.0,0.00022672,7]
[355192326,1740977432772,-151.0,0.00022672,7]
[355192327,1740977432782,-151.0,0.00022672,7]
[355192328,1740977432792,-162.795777,0.00022672,7]
[355192329,1740977432801,-151.0,0.00022672,7]
[355192330,1740977432811,-151.0,0.00022672,7]
[355192331,1740977432822,-151.0,0.00022672,7]
[355192332,1740977432832,-151.0,0.00022672,7]
[355192333,1740977432842,-151.0,0.00022672,7]
[355192334,1740977432852,-151.0,0.00022672,7]
[355192335,1740977432863,-151.0,0.00022672,7]
[355192336,1740977432873,-166.690717,0.00022672,7]
[355192337,1740977432882,-151.0,0.00022672,7]
[355192338,1740977432892,-151.0,0.00022672,7]
[355192339,1740977432902,-151.0,0.00022672,7]
[355192340,1740977432911,-290.253332,0.00022672,7]
[355192341,1740977432921,-151.0,0.00022673,7]
[355192342,1740977432930,-151.0,0.00022673,7]
[355192343,1740977432940,-151.0,0.00022673,7]
[355192344,1740977432949,-151.0,0.00022673,7]
[355192345,1740977432959,-151.0,0.00022673,7]
[355192346,1740977432968,-151.0,0.00022684,7]
[355192347,1740977432977,-151.286662,0.00022684,7]
[355192348,1740977432987,-151.0,0.00022684,7]
[355192349,1740977432997,-151.0,0.00022684,7]
[355192350,1740977433007,-195.618488,0.00022684,7]
[355192351,1740977433019,-151.0,0.00022684,7]
[355192352,1740977433030,-151.0,0.00022684,7]
[355192353,1740977433041,-221.361444,0.00022684,7]
[355192354,1740977433051,-151.0,0.00022684,7]
[355192355,1740977433062,-253.280317,0.00022684,7]
[355192356,1740977433073,-500.0,0.00022684,7]
[355192357,1740977433084,-400.0,0.0002289,2]
[355192358,1740977433095,-151.0,0.000229,7]
[355192359,1740977433106,-707.85370709,0.000229,3]
[355192360,1740977433121,-2197.48412838,0.000229,3]
[355192361,1740977433135,-500.0,0.00022958,7]
[355192362,1740977433146,-160.0,0.00023,3]
[355192363,1740977433156,-500.0,0.00023232,7]
[355192364,1740977433167,-500.0,0.00023506,7]
[355192365,1740977433179,-160.0,0.00023546,2]
[355192366,1740977433189,-21902.17397011,0.000236,2]
[355192367,1740977433200,-270.6,0.000236,7]
[355192368,1740977433396,-176.252244,0.000236,7]
[355192369,1740977433408,-152.02045342,0.00023617,2]
[355192370,1740977433419,-500.0,0.00023618,120]
[355192371,1740977433430,-500.0,0.00023618,120]
[355192372,1740977433441,-500.0,0.00023618,120]
[355192373,1740977433451,-500.0,0.00023618,120]
[355192374,1740977433461,-263.84560976,0.00023618,120]
[355192375,1740977433475,-236.15439024,0.00023618,120]
[355192376,1740977433485,-463.63581683,0.00023618,120]
[355192377,1740977433498,-36.36418317,0.00023618,120]
[355192378,1740977433508,-500.0,0.00023618,120]
[355192379,1740977433518,-500.0,0.00023618,120]
[355192380,1740977433528,-300.16638436,0.00023618,120]
[355192381,1740977433541,-199.83361564,0.00023618,120]
[355192382,1740977433551,-500.0,0.00023618,120]
[355192383,1740977433561,-500.0,0.00023618,120]
[355192384,1740977433571,-500.0,0.00023618,120]
[355192385,1740977433581,-500.0,0.00023618,120]
[355192386,1740977433590,-500.0,0.00023618,120]
[355192387,1740977433600,-500.0,0.00023618,120]
[355192388,1740977433610,-500.0,0.00023618,120]
[355192389,1740977433619,-500.0,0.00023618,120]
[355192390,1740977433630,-500.0,0.00023618,120]
[355192391,1740977433640,-500.0,0.00023618,120]
[355192392,1740977433649,-500.0,0.00023618,120]
[355192393,1740977433659,-500.0,0.00023618,120]
[355192394,1740977433668,-500.0,0.00023618,120]
[355192395,1740977433677,-605.42,0.00023618,120]
[355192396,1740977433687,-500.0,0.00023618,120]
[355192397,1740977433697,-500.0,0.00023618,120]
[355192398,1740977433707,-209.92,0.00023618,120]
[355192399,1740977433717,-500.0,0.0002378,7]
[355192400,1740977433726,-194.85,0.00024,2]
[355192401,1740977433736,-388.45635346,0.00024,2]
[355192417,1740977437803,-111.54364654,0.00024,2]
[355192418,1740977437813,-160.0,0.00024,7]
[355192419,1740977437823,-500.0,0.00024054,7]
[355192420,1740977437833,-248.1487336,0.00024125,2]
[355192421,1740977437842,-500.0,0.00024328,7]
[355192422,1740977437852,-500.0,0.00024602,7]
[355192423,1740977437862,-503.75407753,0.0002461,7]
[355192424,1740977437872,-200.0,0.0002464,14]
[355192425,1740977437882,-648.24866725,0.00024658,2]
[355192426,1740977437893,-503.93416257,0.00024876,7]
[355192427,1740977437902,-79.35694,0.000249,11]
[355192428,1740977437914,-220.64306,0.000249,11]
[355192429,1740977437924,-232.25787063,0.00025,30]
[355192430,1740977437934,-3000.0,0.00025,30]
[355192431,1740977437944,-503.0,0.00025,2]
[355192432,1740977437953,-405.45482957,0.00025,120]
[355192433,1740977437963,-502.11343108,0.00025355,2]
[355192434,1740977437973,-557.57416898,0.0002568,2]
[355192435,1740977437983,-419.3733929,0.00025824,2]
[355192436,1740977437992,-201.0,0.0002636,18]
[355192437,1740977438002,-300.0,0.000264,12]
[355192438,1740977438011,-150.0,0.000266,2]
[355192439,1740977438021,-223.26103085,0.00027297,2]
[355192440,1740977438030,-6608.58402472,0.00027297,2]
[355192441,1740977438040,-270.6,0.000273,7]
[355192442,1740977438050,-171.77,0.000273,31]
[355192443,1740977438060,-171.77,0.000273,31]
[355192444,1740977438069,-171.77,0.000273,31]
[355192445,1740977438079,-171.77,0.000273,31]
[355192446,1740977438088,-171.77,0.000273,31]
[355192447,1740977438098,-171.77,0.000273,31]
[355192448,1740977438108,-171.77,0.000273,31]
[355192449,1740977438118,-171.77,0.000273,31]
[355192450,1740977438129,-171.77,0.000273,31]
[355192451,1740977438142,-171.77,0.000273,31]
[355192452,1740977438151,-171.77,0.000273,31]
[355192453,1740977438162,-171.77,0.000273,31]
[355192454,1740977438172,-500.0,0.00027373,2]
[355192455,1740977438181,-320.35457829,0.00027373,2]
[355192456,1740977438194,-181.61977971,0.00027373,2]
[355192457,1740977438204,-318.38022029,0.00027373,2]
[355192458,1740977438217,-181.61977971,0.00027373,2]
[355192459,1740977438226,-506.2517573,0.00027373,2]
[355192460,1740977438236,-125.75551224,0.00027373,2]
[355192461,1740977438255,-376.57256923,0.00027373,2]
[355192462,1740977438265,-39.77873777,0.00027373,2]
[355192560,1740978638122,-293.11,0.000223,2]
[355192561,1740978638132,-1397.256797,0.000238,2]
[355192677,1740979225618,8807.80921907,0.00021,2]
[355192678,1740979225640,1192.19078093,0.00021,2]
[355192683,1740979572356,223.85707622,0.000189,2]
[355192689,1740979675703,4453.29493577,0.00016,2]
[355192695,1740979719329,256.15474007,0.000145,2]
[355192764,1740979832503,-24900.0,0.00022853,2]
[355192765,1740979832519,-8291.30125179,0.00023,3]
[355192766,1740979832558,-3580.10625128,0.00023,3]
[355192768,1740979832574,-1123.86419659,0.00023,3]
[355192781,1740979838260,-892.36,0.00023,3]
[355192782,1740979838272,-701.79999157,0.00023,3]
[355192824,1740979873552,199.23805081,0.000209,2]
[355192826,1740980176121,150.0,0.000209,2]
[355192862,1740980378568,1069.27367462,0.00021,14]
[355192863,1740980477461,150.0,0.000209,2]
[355192889,1740981032676,-300.0,0.00022999,2]
[355192890,1740981032687,-10008.47740931,0.00023,2]
[355192891,1740981032696,-581.07402545,0.0002369,21]
[355192892,1740981032706,-4158.178172,0.000237,2]
[355192893,1740981032715,-4405.72268314,0.00023751,2]
[355192894,1740981032725,-178.60882468,0.00023751,2]
[355192895,1740981032735,-2463.0813084,0.00023839,2]
[355192898,1740981038557,-17010.72333321,0.00023839,2]
[355192933,1740981043658,-160.05445551,0.00023839,2]
[355192934,1740981043668,-2171.79424375,0.00023845,3]
[355192956,1740981657171,1116.1,0.00021,10]
[355192957,1740981763654,-1000.0,0.00023946,14]
[355192958,1740981763682,-1000.0,0.00023946,14]
[355192959,1740981763706,-245.062247,0.00023946,14]
[355192960,1740981763731,-500.0,0.00024,10]
[355192961,1740981763756,-500.0,0.00024,10]
[355192962,1740981763780,-300.0,0.000249,11]
[355192963,1740981763808,-25574.4226535,0.00026,60]
[355192964,1740981763832,-300.0,0.000264,12]
[355192965,1740981763862,-152.7,0.000272,31]
[355192966,1740981763890,-152.7,0.000272,31]
[355192967,1740981763918,-152.7,0.000272,31]
[355192968,1740981763946,-152.7,0.000272,31]
[355192969,1740981763974,-152.7,0.000272,31]
[355192970,1740981764005,-152.7,0.000272,31]
[355192971,1740981764032,-152.7,0.000272,31]
[355192972,1740981764058,-152.7,0.000272,31]
[355192973,1740981764085,-152.7,0.000272,31]
[355192974,1740981764113,-152.7,0.000272,31]
[355192975,1740981764141,-152.7,0.000272,31]
[355192976,1740981764168,-152.7,0.000272,31]
[355192977,1740981764193,-2169.2663287,0.000273,120]
[355192978,1740981764218,-251.932393,0.000273,30]
[355192979,1740981764252,-300.0,0.000279,13]
[355192980,1740981764572,151.0,0.00027,13]
[355192981,1740981764891,151.0,0.000267,20]
[355192987,1740981869488,300.0,0.00025,11]
[355192988,1740981870182,300.0,0.000265,12]
[355192989,1740981870576,300.0,0.00028,13]
[355192990,1740981909197,152.71,0.000272,31]
[355192991,1740981909262,152.71,0.000272,31]
[355192992,1740981909305,152.71,0.000272,31]
[355192993,1740981909362,152.71,0.000272,31]
[355192994,1740981909429,152.71,0.000272,31]
[355192995,1740981909482,152.71,0.000272,31]
[355192996,1740981909546,152.71,0.000272,31]
[355192997,1740981909606,152.71,0.000272,31]
[355192998,1740981909679,152.71,0.000272,31]
[355192999,1740981909722,152.71,0.000272,31]
[355193000,1740981911074,631.83,0.00028,10]
[355193001,1740981968474,150.0,0.000273,30]
[355193021,1740982232034,-300.0,0.00022844,2]
[355193023,1740982232044,-24900.0,0.00022845,2]
[355193025,1740982232054,-400.335254,0.00023362,2]
[355193027,1740982232064,-500.0,0.00023745,2]
[355193030,1740982232074,-500.0,0.00023745,2]
[355193032,1740982232084,-500.0,0.00023745,2]
[355193034,1740982232094,-500.0,0.00023745,2]
[355193036,1740982232104,-500.0,0.00023745,2]
[355193038,1740982232114,-633.5,0.00023745,2]
[355193040,1740982232124,-161.09184112,0.00023745,2]
[355193042,1740982232134,-160.0,0.00023745,2]
[355193044,1740982232144,-161.04839274,0.00023745,2]
[355193046,1740982232154,-4849.80662966,0.00023746,3]
[355193047,1740982232163,-72250.65949552,0.00023746,3]
[355193049,1740982232173,-19633.85909712,0.00023746,3]
[355193051,1740982232183,-151.0,0.00023746,7]
[355193053,1740982232192,-151.0,0.00023746,7]
[355193055,1740982232202,-11045.20339487,0.00023746,2]
[355193068,1740982237812,-57930.79277495,0.00023746,2]
[355193072,1740982240159,-181.5,0.00023744,2]
[355193073,1740982240169,-18479.26551453,0.00023746,2]
[355193086,1740982242934,-12309.99999272,0.00023746,2]
[355193114,1740982395844,2260.2582857,0.00028,10]
[355193118,1740982520130,152.72,0.000272,31]
[355193119,1740982520226,152.72,0.000272,31]
[355193120,1740982520266,152.72,0.000272,31]
[355193121,1740982520328,152.72,0.000272,31]
[355193122,1740982520390,152.72,0.000272,31]
[355193123,1740982520446,152.72,0.000272,31]
[355193124,1740982520506,152.72,0.000272,31]
[355193125,1740982520571,152.72,0.000272,31]
[355193126,1740982520628,152.72,0.000272,31]
[355193191,1740983129831,152.73,0.000272,31]
[355193192,1740983129874,152.73,0.000272,31]
[355193193,1740983129955,152.73,0.000272,31]
[355193194,1740983130045,152.73,0.000272,31]
[355193195,1740983130103,152.73,0.000272,31]
[355193196,1740983130164,152.73,0.000272,31]
[355193197,1740983130218,152.73,0.000272,31]
[355193198,1740983130482,152.73,0.000272,31]
[355193204,1740983174209,500.0,0.00025095,21]
[355193262,1740983438133,-6072.4999996,0.0002271,2]
[355193302,1740983446073,-2374.96076992,0.0002271,2]
[355193303,1740983446088,-1222.67300108,0.0002271,2]
[355193312,1740983455086,1000.0,0.00028,10]
[355193315,1740983472595,1000.0,0.00024,24]
[355193345,1740983666346,300.0,0.00025,11]